bitfinex/quotes_ETHUSD_20260113
["timestamp","ask_amount","ask_price","bid_price","bid_amount"]
[1768315224090,0.97337247,3163.2,3161.7,3.16277773]
[1768315224315,0.97337247,3163.2,3161.8,3.16275017]
[1768315224744,6.09988693,3162.7,3160.7,0.98493381]
[1768315224906,0.60998869,3162.6,3161.1,3.16340075]
[1768315225240,6.57211066,3162.5,3160.9,3.16357676]
[1768315225537,0.96575486,3162.4,3160.9,6.32723268]
[1768315225993,0.248,3162.3,3160.9,3.16357676]
[1768315226329,0.198,3162.3,3160.9,6.32723268]
[1768315226625,0.198,3162.3,3161.0,0.03163555]
[1768315226830,0.198,3162.3,3160.9,3.16357676]
[1768315226996,6.32471064,3162.2,3160.3,3.16499106]
[1768315227194,9.48706596,3162.2,3160.3,6.32924761]
[1768315227397,0.94194989,3162.0,3160.3,0.00080232]
[1768315228113,0.95780629,3161.7,3160.3,0.00080232]
[1768315228327,0.0158564,3161.5,3160.3,0.00080232]
[1768315228707,0.94194989,3161.2,3159.5,0.001]
[1768315229031,6.32731184,3160.9,3159.5,0.001]
[1768315229195,0.72692617,3160.8,3159.5,0.001]
[1768315229641,0.248,3160.8,3159.5,0.001]
[1768315229954,0.198,3160.8,3159.5,0.001]
[1768315230622,1.15580629,3160.8,3159.5,0.001]
[1768315230955,1.15580629,3160.8,3159.0,0.00080248]
[1768315230956,0.95780629,3160.4,3159.0,0.00080248]
[1768315231258,6.5765131,3160.3,3159.0,0.00080248]
[1768315231424,0.65765131,3160.2,3159.0,0.00080248]
[1768315232056,0.248,3160.1,3159.0,0.00080248]
[1768315232218,3.1634517,3161.2,3159.0,0.00080248]
[1768315232418,6.54557022,3161.7,3159.0,1.01739187]
[1768315232419,3.41165592,3160.9,3159.0,1.01739187]
[1768315232624,3.16357276,3161.0,3159.0,1.01739187]
[1768315232856,0.94194989,3161.7,3159.0,0.98573629]
[1768315233018,6.59771589,3161.6,3159.2,0.98493381]
[1768315233219,9.73686638,3161.6,3159.2,0.98493381]
[1768315233758,10.67881627,3161.6,3159.2,0.98493381]
[1768315234661,3.16295546,3161.6,3159.3,1.01658639]
[1768315234860,3.41095546,3161.6,3159.5,0.97320439]
[1768315235073,3.16344182,3162.0,3159.9,0.97320439]
[1768315235362,0.00080232,3162.0,3160.1,0.97320439]
[1768315235652,0.24880232,3162.0,3160.1,0.97320439]
[1768315235874,0.24880232,3162.0,3160.2,14.5]
[1768315236057,0.34193019,3162.0,3160.3,1.48410373]
[1768315236259,0.00080232,3162.0,3160.4,1.00484595]
[1768315236432,0.00080232,3162.0,3160.4,0.97320439]
[1768315236753,0.00080232,3162.0,3160.5,15.50484495]
[1768315236929,0.00080232,3162.0,3160.5,15.47320439]
[1768315237139,0.00080232,3162.0,3160.6,6.32791242]
[1768315237671,0.00080232,3162.0,3160.6,9.73886863]
[1768315238091,0.00080232,3162.0,3160.6,6.57491242]
[1768315238360,0.02460729,3162.0,3160.6,6.32791242]
[1768315238549,0.00080232,3162.0,3160.6,6.32791242]
[1768315239285,0.02460729,3162.0,3160.6,3.16395621]
[1768315239433,0.63495179,3161.9,3160.6,3.16395621]
[1768315239866,0.63495179,3161.9,3160.6,6.32791242]
[1768315240076,0.63495179,3161.9,3160.6,3.16395621]
[1768315240634,0.63495179,3161.9,3160.6,6.32791242]
[1768315240835,0.63495179,3161.9,3160.7,0.03163856]
[1768315241073,0.248,3161.9,3160.8,0.6359551]
[1768315241282,0.00080232,3162.0,3160.8,0.6359551]
[1768315241283,0.00080232,3162.0,3160.9,13.62782807]
[1768315241456,0.00080232,3162.0,3161.0,0.247]
[1768315241835,0.002,3161.7,3161.0,14.747]
[1768315242036,0.002,3161.7,3161.1,1.34136429]
[1768315242242,0.248,3162.8,3161.1,1.34136429]
[1768315242490,0.002,3162.9,3161.1,1.34136429]
[1768315242984,6.32531698,3162.9,3161.2,0.247]
[1768315243139,0.02380497,3162.8,3161.3,0.15883643]
[1768315243342,3.16185537,3162.7,3161.4,6.32631112]
[1768315243777,0.002,3162.9,3161.4,10.46267107]
[1768315243975,0.002,3162.9,3161.5,1.22020439]
[1768315244292,0.002,3162.9,3161.6,0.97320439]
[1768315244839,0.002,3162.9,3161.6,0.47711867]
[1768315245073,3.16365877,3162.9,3161.4,6.32631112]
[1768315245461,6.32531754,3162.9,3161.4,3.16315556]
[1768315245667,6.32531754,3162.9,3161.4,6.32631112]
[1768315245847,6.32531754,3162.9,3161.4,3.16315556]
[1768315246042,0.02380497,3162.8,3161.3,0.15883643]
[1768315246242,0.9338269,3162.6,3160.4,0.247]
[1768315246482,0.9338269,3162.6,3160.9,3.16359801]
[1768315246649,0.9338269,3162.6,3160.4,0.247]
[1768315246846,0.9338269,3162.6,3160.4,3.41112423]
[1768315247054,0.02380497,3162.5,3160.9,3.16358697]
[1768315247269,0.95763187,3162.5,3160.4,0.247]
[1768315247469,9.48646596,3162.4,3160.6,6.32791242]
[1768315247669,0.27180497,3162.3,3160.6,3.16395621]
[1768315247876,1.20563187,3162.3,3160.6,3.16395621]
[1768315248056,1.20563187,3162.3,3160.6,6.32791242]
[1768315248256,1.20563187,3162.3,3160.5,0.34119917]
[1768315248257,0.9338269,3162.2,3160.5,0.34119917]
[1768315248562,0.9496833,3162.1,3160.3,0.00080272]
[1768315248762,0.9338269,3161.8,3160.3,0.00080272]
[1768315248963,0.9338269,3161.7,3160.3,0.00080272]
[1768315249273,0.248,3161.6,3160.3,0.00080272]
[1768315249681,6.32611102,3161.5,3160.3,0.00080272]
[1768315249849,6.32471064,3162.2,3160.3,0.31732727]
[1768315250044,0.248,3161.9,3160.3,0.31732727]
[1768315250277,9.48706596,3162.2,3160.3,0.31732727]
[1768315250479,0.248,3161.9,3160.3,0.31732727]
[1768315251170,0.248,3162.0,3160.3,0.31732727]
[1768315251485,0.90527106,3162.0,3160.3,0.31732727]
[1768315251796,6.32551078,3161.8,3160.4,3.16415643]
[1768315251947,3.339,3161.6,3160.3,0.00080272]
[1768315252153,0.95763187,3161.7,3160.3,0.00080272]
[1768315252154,0.9338269,3161.7,3160.3,0.00080272]
[1768315252346,9.48826617,3161.8,3160.3,0.00080272]
[1768315252548,0.90527106,3162.0,3160.3,0.00080272]
[1768315252549,3.1626653,3161.9,3160.4,6.57531286]
[1768315252945,0.248,3162.3,3160.4,6.57531286]
[1768315253149,0.248,3162.3,3160.5,0.03164056]
[1768315253378,3.41038165,3162.2,3160.4,9.75532569]
[1768315253584,6.5727633,3162.2,3160.4,9.75532569]
[1768315253774,0.002,3161.7,3160.7,9.4915683]
[1768315254158,0.002,3161.7,3160.7,3.1638561]
[1768315254362,0.002,3161.7,3160.6,3.16390729]
[1768315254782,0.002,3161.7,3160.6,9.49181971]
[1768315254950,0.002,3161.7,3160.7,0.0158564]
[1768315255150,0.002,3161.7,3160.8,0.95076761]
[1768315255951,0.002,3161.7,3160.9,6.32731184]
[1768315256154,0.002,3161.7,3161.0,0.04749195]
[1768315256360,0.002,3161.7,3161.1,0.247]
[1768315257101,0.002,3161.7,3160.9,21.07431184]
[1768315257394,0.002,3161.7,3161.0,1.02655178]
[1768315257546,0.002,3161.7,3160.8,3.16373771]
[1768315258078,0.002,3161.7,3160.7,6.32770838]
[1768315258400,0.002,3161.7,3160.8,0.03163756]
[1768315258846,0.002,3161.7,3160.9,0.98906079]
[1768315259308,0.002,3161.7,3160.9,1.02069734]
[1768315259466,0.002,3161.7,3160.9,15.48906079]
[1768315259798,0.002,3161.7,3161.0,1.54890608]
[1768315259955,0.002,3161.7,3160.7,3.16385228]
[1768315260157,0.002,3161.7,3160.9,3.16358358]
[1768315260484,0.002,3161.7,3161.1,3.16345575]
[1768315260879,0.002,3161.7,3161.1,6.3269115]
[1768315261097,3.16369941,3162.9,3161.2,1.02069434]
[1768315261098,0.002,3162.9,3161.2,1.02069434]
[1768315261257,3.16367439,3162.9,3161.4,0.98906079]
[1768315261596,7.25917568,3162.9,3161.3,1.05110616]
[1768315261799,7.25917568,3162.9,3161.3,1.29810616]
[1768315261980,0.002,3162.9,3161.4,6.34216752]
[1768315262286,0.002,3162.9,3161.9,0.98906079]
[1768315262526,1e-08,3163.2,3162.1,0.98906079]
[1768315262671,1e-08,3163.2,3162.7,0.0158564]
[1768315262853,1e-08,3163.2,3162.8,0.247]
[1768315263055,1e-08,3163.2,3162.9,0.247]
[1768315263353,1e-08,3163.2,3162.5,0.0158564]
[1768315263354,1e-08,3163.2,3162.7,0.247]
[1768315263556,1e-08,3163.2,3162.5,0.0158564]
[1768315263792,1e-08,3163.2,3162.7,0.247]
[1768315263974,1e-08,3163.2,3162.1,14.5158564]
[1768315264174,1e-08,3163.2,3162.2,1.17321323]
[1768315264363,1e-08,3163.2,3162.2,0.247]
[1768315264562,0.002,3163.3,3162.3,0.247]
[1768315264965,0.002,3163.3,3162.3,3.16223875]
[1768315265157,0.002,3163.3,3162.0,14.5]
[1768315265365,0.002,3163.3,3160.9,0.0158564]
[1768315265366,0.90504117,3163.1,3160.9,0.0158564]
[1768315265566,0.90504117,3162.9,3161.0,0.247]
[1768315265779,0.90504117,3162.9,3161.1,0.0158564]
[1768315265989,6.3235108,3162.8,3161.1,1.49689124]
[1768315266188,0.02380497,3162.7,3161.1,1.49689124]
[1768315266365,0.02380497,3162.7,3160.9,0.0158564]
[1768315266566,0.92884614,3162.7,3160.6,0.0168564]
[1768315266889,12.6470216,3162.8,3160.6,0.001]
[1768315266890,1.19981465,3162.6,3160.6,0.001]
[1768315267091,0.29477348,3162.5,3160.6,0.001]
[1768315267256,0.247,3162.4,3160.6,0.001]
[1768315267658,0.02380497,3162.3,3160.6,3.16489498]
[1768315267870,9.48676596,3162.3,3160.7,3.16384904]
[1768315268702,9.48676596,3162.3,3160.7,3.41084904]
[1768315268703,6.32451064,3162.3,3160.7,3.41084904]
[1768315268860,6.32451064,3162.3,3160.7,6.57470514]
[1768315269260,0.02380497,3162.2,3160.7,0.247]
[1768315269503,9.48676596,3162.3,3160.7,0.247]
[1768315269661,9.48676596,3162.3,3160.6,0.001]
[1768315269662,0.90504117,3162.1,3160.6,0.001]
[1768315269867,0.92884614,3162.0,3160.6,0.001]
[1768315270217,6.32531072,3161.9,3160.6,0.001]
[1768315270366,3.16265536,3161.9,3160.6,0.001]
[1768315270912,6.32531072,3161.9,3160.6,0.001]
[1768315271108,0.63253107,3161.8,3160.6,0.001]
[1768315271413,6.32531072,3161.9,3160.6,0.248]
[1768315271614,3.16265536,3161.9,3160.6,0.248]
[1768315272111,0.247,3162.1,3160.7,0.03163856]
[1768315272301,7.22856675,3162.8,3160.7,9.49154181]
[1768315272504,7.22856675,3162.8,3160.8,0.0158564]
[1768315272813,0.72305667,3162.7,3160.9,1.04530439]
[1768315273585,0.90504117,3162.5,3160.9,1.04530439]
[1768315273805,0.90504117,3162.5,3160.9,7.37257635]
[1768315274116,0.248,3162.4,3160.9,1.04530439]
[1768315274314,0.90504117,3162.1,3160.6,0.001]
[1768315274490,0.90504117,3161.9,3160.6,0.001]
[1768315274707,0.90504117,3161.9,3159.5,0.247]
[1768315274708,0.92089757,3161.6,3159.5,0.247]
[1768315274999,0.90504117,3161.4,3159.5,3.41200226]
[1768315275208,0.90504117,3161.4,3159.6,3.16492857]
[1768315275381,0.90504117,3161.4,3159.5,0.65772492]
[1768315275575,0.94473348,3161.2,3159.1,1.19264567]
[1768315275912,0.94473348,3161.2,3159.2,6.33071662]
[1768315275913,0.248,3161.1,3159.2,6.33071662]
[1768315276372,0.248,3161.1,3159.2,3.16535831]
[1768315276578,0.94473348,3160.7,3159.0,0.00080248]
[1768315276778,0.94473348,3160.5,3159.0,0.00080248]
[1768315277011,1.19273348,3160.4,3159.0,0.00080248]
[1768315277196,0.248,3160.3,3159.0,0.00080248]
[1768315277397,0.248,3160.3,3159.1,3.16543717]
[1768315277600,9.49126803,3160.8,3159.1,3.16543717]
[1768315277788,0.248,3160.7,3159.1,6.33089568]
[1768315277993,0.248,3160.7,3160.6,0.001]
[1768315278186,6.32751202,3160.8,3159.1,6.33089568]
[1768315278382,7.05473657,3160.8,3159.2,0.66641957]
[1768315278889,0.72722455,3160.8,3159.2,0.68227597]
[1768315279112,6.57533076,3160.9,3159.2,0.68227597]
[1768315279314,9.73899614,3160.9,3159.2,0.68227597]
[1768315279527,7.27206424,3160.9,3159.0,0.00080248]
[1768315279816,6.32733076,3160.9,3159.2,0.0158564]
[1768315280179,6.32733076,3160.9,3159.3,0.247]
[1768315280381,6.32531072,3161.9,3159.8,0.0158564]
[1768315280613,6.32531072,3161.9,3159.9,0.247]
[1768315280614,0.97508469,3161.8,3159.9,0.247]
[1768315280831,0.02380497,3161.7,3159.6,1.19810699]
[1768315281115,0.94473348,3161.5,3159.7,0.03164857]
[1768315281429,0.94473348,3161.5,3159.1,0.2628564]
[1768315282117,9.48946668,3161.4,3159.3,9.49577436]
[1768315282291,1.04342002,3161.3,3159.3,6.33051624]
[1768315282492,0.248,3161.2,3159.4,0.03165157]
[1768315282722,1.9881535,3161.3,3159.4,0.03165157]
[1768315282927,1.19273348,3161.2,3159.4,0.03165157]
[1768315283114,1.19273348,3161.2,3159.3,6.33051624]
[1768315283435,1.16834883,3161.1,3159.4,0.63305162]
[1768315283734,0.47161535,3161.1,3159.4,0.63305162]
[1768315283888,3.16355583,3161.0,3159.5,6.33011552]
[1768315284089,3.16355583,3161.0,3159.5,9.49517328]
[1768315284315,3.1873608,3161.0,3159.5,6.33011552]
[1768315284521,6.69300928,3161.0,3159.6,0.69631671]
[1768315285226,6.69300928,3161.0,3159.5,3.16505776]
[1768315285389,7.63774276,3161.0,3159.5,3.16505776]
[1768315285591,7.63774276,3161.0,3159.5,6.33011552]
[1768315285819,0.02380497,3160.9,3159.5,6.33011552]
[1768315286068,0.02380497,3160.9,3159.5,3.16505776]
[1768315286069,6.32751202,3160.8,3159.5,3.16505776]
[1768315286271,0.6351317,3160.7,3159.5,3.48156354]
[1768315287171,0.02380497,3160.6,3159.0,0.00080248]
[1768315287352,0.248,3160.5,3159.0,0.00080248]
[1768315287542,0.248,3160.4,3159.4,3.16514324]
[1768315287742,0.248,3160.4,3159.0,0.00080248]
[1768315288043,9.49276965,3160.3,3159.0,0.00080248]
[1768315288247,0.94473348,3160.1,3159.0,0.00080248]
[1768315288593,0.94473348,3159.9,3158.1,0.247]
[1768315288803,0.248,3159.8,3158.3,3.16619608]
[1768315289088,0.248,3159.8,3158.1,0.247]
[1768315289288,7.03938354,3159.5,3157.9,3.1674557]
[1768315289578,0.95193835,3159.4,3157.9,0.000804]
[1768315289796,0.248,3159.4,3158.0,3.16653233]
[1768315290197,9.49577436,3159.3,3157.9,0.000804]
[1768315290395,6.33051624,3159.3,3157.9,0.000804]
[1768315290597,0.248,3159.2,3157.9,0.000804]
[1768315291596,0.248,3159.1,3157.9,0.000804]
[1768315291802,1.22237744,3159.1,3157.9,0.000804]
[1768315292202,3.16555872,3159.0,3157.9,0.000804]
[1768315293198,3.16548117,3159.1,3157.9,0.000804]
[1768315293402,0.248,3159.0,3157.9,0.000804]
[1768315293566,1.20425604,3160.1,3157.9,0.000804]
[1768315293767,3.16470463,3159.9,3157.9,0.000804]
[1768315294187,7.27409521,3159.9,3157.9,6.33412676]
[1768315294394,13.60345694,3159.9,3157.9,6.33412676]
[1768315294566,0.94473348,3159.8,3157.9,6.33412676]
[1768315294984,1.21183992,3159.7,3157.9,6.33412676]
[1768315295292,6.3293142,3159.9,3158.0,0.88041268]
[1768315295469,3.69886986,3160.0,3158.2,0.95113567]
[1768315295671,3.16445682,3160.1,3158.4,0.95113567]
[1768315295871,3.41245682,3160.1,3158.4,0.95113567]
[1768315296276,0.98764489,3160.0,3158.5,6.33211966]
[1768315296800,0.96383992,3160.0,3158.5,6.33211966]
[1768315297004,6.32891364,3160.1,3158.5,6.33211966]
[1768315297005,0.248,3159.9,3158.5,6.33211966]
[1768315297203,0.248,3159.9,3158.6,0.63321197]
[1768315297781,3.16445682,3160.1,3158.6,0.63321197]
[1768315297989,3.16445682,3160.1,3158.6,1.56849124]
[1768315298280,3.16445682,3160.1,3158.6,1.60015083]
[1768315298477,6.32851436,3160.3,3158.7,9.49757811]
[1768315298809,6.32851436,3160.3,3158.8,0.71069474]
[1768315298810,0.02380497,3160.2,3158.8,0.71069474]
[1768315299109,0.96383992,3160.2,3158.8,0.71069474]
[1768315299795,0.98764489,3160.2,3158.8,0.71069474]
[1768315300398,3.16445682,3160.1,3158.2,0.247]
[1768315300779,3.16445682,3160.1,3158.3,10.43406023]
[1768315300979,0.248,3160.0,3158.4,0.93527927]
[1768315301279,0.96383992,3159.9,3158.3,3.16626032]
[1768315301602,6.32891364,3160.1,3158.4,0.93527927]
[1768315301803,0.248,3159.8,3158.5,0.72677999]
[1768315301978,0.248,3159.8,3158.3,6.33252064]
[1768315301979,0.248,3159.8,3158.3,3.16626032]
[1768315302314,0.248,3159.8,3158.3,6.33252064]
[1768315302315,0.02380497,3159.7,3158.3,6.33252064]
[1768315302513,6.32991516,3159.6,3158.7,0.001]
[1768315303078,3.16495758,3159.6,3158.7,0.001]
[1768315303828,6.32991516,3159.6,3158.7,0.001]
[1768315304120,6.98790668,3159.6,3158.7,0.001]
[1768315304524,0.02380497,3159.5,3158.7,0.001]
[1768315305081,0.02380497,3159.5,3157.9,0.000804]
[1768315305082,0.96383992,3159.5,3157.9,0.000804]
[1768315305287,0.96383992,3159.5,3158.1,3.16641776]
[1768315305288,0.98764489,3159.5,3158.1,3.16641776]
[1768315305496,0.98764489,3159.5,3157.9,3.16741544]
[1768315305497,0.96383992,3159.5,3158.3,3.16626032]
[1768315305687,1.04588652,3159.4,3158.1,3.16639173]
[1768315306014,1.04588652,3159.4,3157.9,0.000804]
[1768315306015,0.27180497,3159.3,3157.9,0.000804]
[1768315306518,9.49607493,3159.2,3157.9,0.000804]
[1768315306715,0.98764489,3159.1,3157.9,0.000804]
[1768315307693,0.98764489,3159.1,3156.9,14.5008016]
[1768315307694,0.96383992,3159.1,3156.9,0.0008016]
[1768315307924,0.96383992,3158.9,3156.9,0.46755989]
[1768315308107,0.96383992,3158.7,3156.9,0.03247824]
[1768315308311,0.96383992,3158.7,3157.0,3.16752283]
[1768315308512,3.1659596,3158.6,3157.1,6.36657328]
[1768315308718,6.3319192,3158.6,3157.1,9.50236246]
[1768315309013,3.1659596,3158.6,3157.1,9.50236246]
[1768315309325,3.1659596,3158.6,3157.2,0.95023625]
[1768315309529,3.16575467,3158.9,3157.3,0.93527927]
[1768315309530,3.16565893,3158.9,3157.3,0.93527927]
[1768315309827,3.16565893,3158.9,3157.5,0.93527927]
[1768315309992,9.49697679,3158.9,3157.5,0.93527927]
[1768315310190,7.08229495,3158.8,3157.1,3.16743484]
[1768315310434,9.49817949,3158.5,3156.9,0.0008016]
[1768315310606,0.248,3158.4,3156.9,0.0008016]
[1768315311038,7.05848998,3158.3,3156.9,0.0008016]
[1768315311252,0.96383992,3158.3,3156.9,0.0008016]
[1768315311968,9.49817949,3158.5,3156.9,0.0008016]
[1768315312124,1.19781795,3158.4,3157.0,0.93527927]
[1768315312432,6.33252064,3158.3,3157.1,3.16746381]
[1768315312630,0.94981795,3158.4,3157.2,0.03167363]
[1768315312830,6.33111744,3159.0,3157.4,0.93527927]
[1768315313137,0.248,3158.9,3157.4,0.93527927]
[1768315313338,0.27180497,3158.9,3157.4,0.93527927]
[1768315313646,6.33111744,3159.0,3157.4,0.93527927]
[1768315313647,3.16555872,3159.0,3157.4,0.93527927]
[1768315313850,3.16535887,3159.2,3157.6,0.93527927]
[1768315314051,0.34133589,3159.1,3157.6,0.93527927]
[1768315314234,0.34133589,3159.1,3157.8,0.93527927]
[1768315314423,3.16505776,3159.5,3158.0,0.93527927]
[1768315314628,0.02380497,3159.4,3158.1,7.26820095]
[1768315314823,6.57811552,3159.5,3158.1,7.26820095]
[1768315315054,0.65809195,3159.4,3158.2,0.7268201]
[1768315315219,0.002804,3159.6,3158.3,0.93527927]
[1768315315420,3.16776696,3159.6,3158.3,0.93527927]
[1768315315713,0.02380497,3159.5,3158.3,0.93527927]
[1768315315913,6.33272992,3159.6,3158.3,0.93527927]
[1768315316152,6.99000788,3159.6,3158.4,0.16620994]
[1768315316452,6.99000788,3159.6,3158.2,0.7268201]
[1768315316453,6.96620291,3159.6,3158.2,0.7268201]
[1768315316655,0.02380497,3159.5,3158.3,3.16626032]
[1768315316862,0.98764489,3159.5,3158.3,3.16626032]
[1768315317425,0.96383992,3159.5,3158.2,3.89315846]
[1768315317653,0.96383992,3159.5,3158.2,3.16633836]
[1768315317954,10.13116587,3159.6,3158.2,6.33269894]
[1768315317955,0.248,3159.4,3158.2,6.33269894]
[1768315318156,6.96620291,3159.6,3158.2,6.33269894]
[1768315318349,0.248,3159.5,3158.2,6.33269894]
[1768315318855,6.33031588,3159.4,3158.2,3.16633836]
[1768315319060,0.47991929,3159.3,3158.2,7.05950419]
[1768315319559,0.63627699,3159.6,3158.3,0.93527927]
[1768315319763,0.002804,3159.6,3158.5,0.93527927]
[1768315320435,0.002,3159.9,3158.9,0.93527927]
[1768315320784,0.002,3159.9,3159.0,10.43195543]
[1768315321180,0.002,3161.2,3159.1,0.93527927]
[1768315321486,0.002,3161.2,3159.0,12.90923488]
[1768315321487,0.002,3161.2,3159.5,0.93527927]
[1768315321839,3.16351885,3161.1,3159.6,1.18227927]
[1768315322041,0.002,3161.2,3159.6,1.18227927]
[1768315322042,0.02580497,3161.0,3159.6,1.18227927]
[1768315322346,3.16469446,3160.7,3159.6,1.18227927]
[1768315322737,3.16469446,3160.7,3159.2,0.61686238]
[1768315322738,0.02380497,3160.6,3159.2,0.61686238]
[1768315322935,0.00080248,3160.7,3159.3,0.247]
[1768315322936,0.24880248,3160.7,3159.3,0.247]
[1768315323338,0.02380497,3160.6,3159.3,0.247]
[1768315323655,0.24880248,3160.7,3159.3,0.247]
[1768315323856,0.24880248,3160.7,3159.4,3.16508902]
[1768315324287,0.24880248,3160.7,3159.3,3.41222363]
[1768315324488,0.02380497,3160.6,3158.5,0.93527927]
[1768315324688,9.49216896,3160.5,3158.9,3.16565893]
[1768315324867,6.32811264,3160.5,3158.9,0.98794162]
[1768315325366,6.57611264,3160.5,3158.9,0.98794162]
[1768315325917,0.02380497,3160.4,3158.9,0.98794162]
[1768315326056,0.65999176,3160.3,3159.0,0.75664416]
[1768315326600,0.68379673,3160.3,3159.0,0.75664416]
[1768315326758,6.32871336,3160.2,3159.0,0.75664416]
[1768315326961,3.82428429,3160.3,3159.1,0.98794162]
[1768315327154,3.16429253,3160.3,3159.1,0.98794162]
[1768315327359,9.51668256,3160.3,3158.9,3.1656554]
[1768315327554,9.49287759,3160.3,3158.8,3.16568994]
[1768315327899,0.248,3160.2,3159.0,3.16554571]
[1768315328061,0.248,3160.2,3158.9,3.16563874]
[1768315328257,0.97408776,3160.1,3159.0,3.16554894]
[1768315328489,6.57658506,3160.3,3159.0,3.16554894]
[1768315328669,1.0049181,3160.2,3158.2,1.71474687]
[1768315328872,9.74137046,3160.1,3158.4,0.98794162]
[1768315329454,0.02380497,3160.0,3158.4,0.98794162]
[1768315329683,0.02380497,3160.0,3158.3,3.16626032]
[1768315329896,8.36872642,3159.9,3158.3,0.70594135]
[1768315330090,8.36872642,3159.9,3158.2,6.33268867]
[1768315330293,8.36872642,3159.9,3158.2,3.16632809]
[1768315330464,1.0049181,3159.8,3158.1,0.247]
[1768315330792,6.09465006,3158.9,3156.9,0.98874322]
[1768315330976,0.98111313,3159.1,3157.4,3.16716285]
[1768315331199,12.66023104,3159.5,3157.5,0.98794162]
[1768315331200,0.248,3159.0,3157.5,0.98794162]
[1768315331880,0.248,3159.0,3157.4,6.3343257]
[1768315332211,1.22911313,3159.0,3157.4,6.3343257]
[1768315332379,1.22911313,3159.0,3157.5,0.63353257]
[1768315332380,0.98111313,3158.9,3157.5,0.63353257]
[1768315332785,6.33151828,3158.8,3157.5,3.80053527]
[1768315333182,9.49727742,3158.8,3157.5,0.63353257]
[1768315333388,10.47839055,3158.8,3157.3,3.1682214]
[1768315333583,10.47839055,3158.8,3157.3,0.001]
[1768315333789,10.47839055,3158.8,3157.3,3.16825115]
[1768315334127,0.98111313,3158.7,3157.3,0.001]
[1768315334884,0.98111313,3158.5,3157.3,0.001]
[1768315335216,9.4978788,3158.6,3157.3,0.001]
[1768315335217,2.27701232,3158.4,3157.3,0.001]
[1768315337038,6.33252064,3158.3,3157.3,0.001]
[1768315337384,0.97157709,3158.2,3156.9,0.0008016]
[1768315337721,0.97157709,3158.2,3155.3,0.0158564]
[1768315337722,0.97157709,3157.7,3155.7,15.45102972]
[1768315338028,6.09465006,3157.3,3155.3,0.95102972]
[1768315338235,0.248,3157.2,3155.5,0.95102972]
[1768315338394,0.248,3157.2,3156.3,3.16819571]
[1768315339211,3.16746381,3157.1,3155.7,3.16881467]
[1768315339414,3.16686414,3157.7,3155.9,0.95102972]
[1768315339601,3.16686414,3157.7,3155.9,0.9827164]
[1768315339788,0.248,3157.6,3156.6,0.001]
[1768315340218,1.21957709,3157.6,3156.6,0.001]
[1768315340430,1.0720287,3157.5,3156.6,0.001]
[1768315340923,0.97157709,3157.4,3156.6,0.001]
[1768315341126,1.0720287,3157.5,3156.6,0.001]
[1768315341337,0.248,3157.4,3156.6,0.001]
[1768315342035,6.33352332,3157.8,3156.6,0.001]
[1768315342202,0.248,3157.7,3156.6,0.001]
[1768315342401,0.27180497,3157.7,3156.6,0.001]
[1768315342633,0.248,3157.7,3156.6,0.001]
[1768315342833,0.65815233,3157.6,3156.6,0.001]
[1768315343435,3.82514669,3157.6,3156.6,0.001]
[1768315343930,0.97238053,3158.3,3156.6,0.001]
[1768315344233,6.58072116,3158.2,3156.6,0.001]
[1768315344544,3.16636058,3158.2,3156.6,0.95202972]
[1768315344705,0.248,3158.1,3156.6,0.95202972]
[1768315345332,0.00080344,3158.3,3156.8,0.95102972]
[1768315345538,0.248,3158.1,3156.9,1.04863039]
[1768315345704,0.00080344,3158.3,3157.0,0.03167564]
[1768315346012,0.00080344,3158.3,3157.2,0.95102972]
[1768315347464,0.00080344,3158.3,3157.3,6.33452632]
[1768315347767,0.00080344,3158.3,3157.4,0.95102972]
[1768315347966,0.00080344,3158.3,3157.5,0.51665313]
[1768315349534,0.00080344,3158.3,3157.6,6.33392448]
[1768315349940,0.00080344,3158.3,3157.6,10.45191644]
[1768315350832,0.0008016,3158.6,3157.6,10.45191644]
[1768315351961,0.0008016,3158.6,3157.7,0.247]
[1768315352163,0.0008016,3158.6,3157.8,0.41203587]
[1768315352668,0.002,3158.0,3157.8,0.41203587]
[1768315352962,0.002,3158.3,3157.8,0.41203587]
[1768315353336,0.0008016,3158.6,3157.9,0.95102972]
[1768315353666,0.00280441,3159.6,3158.1,0.95102972]
[1768315353884,0.00280441,3159.6,3158.3,0.95102972]
[1768315354054,0.00280441,3159.6,3158.4,0.247]
[1768315355079,0.00280441,3159.6,3158.5,0.9006352]
[1768315355459,0.00280441,3159.6,3158.6,3.1659596]
[1768315355649,0.02660938,3159.6,3158.6,3.1659596]
[1768315355844,0.00280441,3159.6,3158.7,0.31659596]
[1768315357674,0.00280441,3159.6,3158.7,3.48237787]
[1768315358053,0.02660938,3159.6,3158.7,3.48237787]
[1768315358791,1.0028697,3159.6,3157.8,0.0158564]
[1768315358950,0.97906473,3159.6,3158.1,3.16637053]
[1768315359285,0.248,3159.5,3157.6,0.94816122]
[1768315359486,0.248,3159.4,3158.4,3.16609619]
[1768315359652,3.41325812,3159.3,3158.3,4.06688118]
[1768315359851,6.57851624,3159.3,3158.4,0.63324481]
[1768315360369,3.41325812,3159.3,3158.4,0.63324481]
[1768315360767,6.57851624,3159.3,3158.4,0.63324481]
[1768315360969,6.57851624,3159.3,3158.3,3.16624598]
[1768315361410,6.57851624,3159.3,3158.2,3.16634939]
[1768315361411,0.97626032,3159.2,3158.2,3.16635212]
[1768315361611,6.33091702,3159.1,3158.1,3.16643198]
[1768315362723,3.16505776,3159.5,3158.1,3.16643198]
[1768315362932,0.56478622,3159.4,3158.2,0.3483068]
[1768315363105,0.56478622,3159.4,3158.3,0.0316626]
[1768315363306,0.56478622,3159.4,3158.2,0.3166432]
[1768315363832,6.33051624,3159.3,3158.4,3.16616008]
[1768315364204,3.16525812,3159.3,3158.4,6.33232016]
[1768315364395,0.00280441,3159.6,3158.6,0.9006352]
[1768315364723,6.35663548,3159.6,3158.5,0.63423202]
[1768315364934,9.52164853,3159.6,3158.5,0.001]
[1768315365148,0.002,3159.3,3158.5,0.001]
[1768315365335,0.248,3159.2,3158.5,0.001]
[1768315365713,3.16545851,3159.1,3158.5,0.001]
[1768315366149,0.002,3159.3,3158.5,0.001]
[1768315366645,0.002,3159.3,3158.5,0.9016352]
[1768315366951,0.002,3159.3,3158.6,0.03165959]
[1768315367114,0.00280441,3159.6,3158.7,0.9006352]
[1768315367447,3.16631932,3160.3,3158.9,0.9006352]
[1768315367654,0.002,3160.3,3159.0,1.78864916]